[Event "Early-Titled-Tuesday-Blitz-March-05-2024"]
[Site "Chess.com"]
[Date "2024.03.05"]
[Round "8"]
[White "Willi_Skibbe"]
[Black "bazar-wokzal"]
[Result "0-1"]
[WhiteElo "2299"]
[BlackElo "2569"]
[TimeControl "180+1"]
[EndTime "9:30:45 PST"]
[Termination "bazar-wokzal won by resignation"]

1. c4 {[%clk 0:03:00.9]} 1... e5 {[%clk 0:02:59.8]} 2. Nc3 {[%clk 0:02:56]} 2...
Nf6 {[%clk 0:02:59.9]} 3. Nf3 {[%clk 0:02:54.7]} 3... e4 {[%clk 0:03:00.1]} 4.
Ng5 {[%clk 0:02:52.4]} 4... c6 {[%clk 0:03:00.4]} 5. Ngxe4 {[%clk 0:02:49]} 5...
Nxe4 {[%clk 0:03:00.3]} 6. Nxe4 {[%clk 0:02:48.6]} 6... d5 {[%clk 0:03:01]} 7.
cxd5 {[%clk 0:02:48.7]} 7... cxd5 {[%clk 0:03:01.9]} 8. Ng3 {[%clk 0:02:48]}
8... h5 {[%clk 0:03:01.8]} 9. e3 {[%clk 0:02:39.8]} 9... h4 {[%clk 0:03:01]} 10.
Ne2 {[%clk 0:02:39.2]} 10... Nc6 {[%clk 0:02:59.9]} 11. h3 {[%clk 0:02:33]}
11... Bf5 {[%clk 0:02:59.1]} 12. Qa4 {[%clk 0:02:26.9]} 12... Qd7 {[%clk
0:02:56.7]} 13. Nd4 {[%clk 0:02:25.9]} 13... Bc5 {[%clk 0:02:14.3]} 14. Nxc6
{[%clk 0:02:10.1]} 14... bxc6 {[%clk 0:02:12.9]} 15. b3 {[%clk 0:02:00.3]} 15...
d4 {[%clk 0:01:58.4]} 16. Ba3 {[%clk 0:01:56.6]} 16... dxe3 {[%clk 0:01:48.9]}
17. dxe3 {[%clk 0:01:52.5]} 17... Rd8 {[%clk 0:01:48.1]} 18. Be2 {[%clk
0:01:35.8]} 18... Qd2+ {[%clk 0:01:38.9]} 19. Kf1 {[%clk 0:01:28.7]} 19... Bxa3
{[%clk 0:01:02.5]} 20. Qxa3 {[%clk 0:01:26.3]} 20... Rh6 {[%clk 0:01:00.1]} 21.
Qc1 {[%clk 0:01:13.6]} 21... Rhd6 {[%clk 0:00:48.8]} 22. f3 {[%clk 0:00:42.8]}
22... Qxc1+ {[%clk 0:00:41.6]} 23. Rxc1 {[%clk 0:00:42.3]} 23... Rd2 {[%clk
0:00:42.3]} 24. e4 {[%clk 0:00:41]} 24... Be6 {[%clk 0:00:38.9]} 25. Kf2 {[%clk
0:00:36.9]} 25... Rxa2 {[%clk 0:00:37.7]} 26. Rxc6 {[%clk 0:00:34.1]} 26... Rdd2
{[%clk 0:00:35.3]} 27. Re1 {[%clk 0:00:29.1]} 27... Bxb3 {[%clk 0:00:35.1]} 28.
Ke3 {[%clk 0:00:28.9]} 28... a5 {[%clk 0:00:19.8]} 29. Rc8+ {[%clk 0:00:28.6]}
29... Kd7 {[%clk 0:00:19.3]} 30. Rh8 {[%clk 0:00:29.5]} 30... g5 {[%clk
0:00:18.6]} 31. Bb5+ {[%clk 0:00:19]} 31... Ke7 {[%clk 0:00:18.3]} 32. Re2
{[%clk 0:00:19.9]} 32... Rxe2+ {[%clk 0:00:16.6]} 33. Bxe2 {[%clk 0:00:19.3]}
33... a4 {[%clk 0:00:17.2]} 34. Rg8 {[%clk 0:00:15.3]} 34... f6 {[%clk
0:00:16.5]} 35. Rg7+ {[%clk 0:00:15]} 35... Kd6 {[%clk 0:00:16.8]} 36. Ra7
{[%clk 0:00:15.9]} 36... Rb2 {[%clk 0:00:14.9]} 37. Ra6+ {[%clk 0:00:14.8]}
37... Ke7 {[%clk 0:00:15]} 38. Ra7+ {[%clk 0:00:14.9]} 38... Kd6 {[%clk
0:00:15.3]} 39. Ra6+ {[%clk 0:00:15.4]} 39... Ke7 {[%clk 0:00:13.8]} 40. Ra7+
{[%clk 0:00:15.5]} 40... Kf8 {[%clk 0:00:14]} 41. Bf1 {[%clk 0:00:10.3]} 41...
Ra2 {[%clk 0:00:11.8]} 42. Be2 {[%clk 0:00:10.4]} 42... Be6 {[%clk 0:00:11.3]}
43. Bf1 {[%clk 0:00:10]} 43... Ra1 {[%clk 0:00:10.6]} 44. Be2 {[%clk 0:00:08.3]}
44... a3 {[%clk 0:00:10.9]} 45. Kd2 {[%clk 0:00:08.3]} 45... a2 {[%clk
0:00:11.1]} 46. Ke3 {[%clk 0:00:08.4]} 46... Rc1 {[%clk 0:00:10.6]} 47. Ra8+
{[%clk 0:00:06.8]} 47... Kg7 {[%clk 0:00:10.2]} 48. Ra7+ {[%clk 0:00:07.7]}
48... Kh6 {[%clk 0:00:10.1]} 49. f4 {[%clk 0:00:08.3]} 49... gxf4+ {[%clk
0:00:09.7]} 50. Kxf4 {[%clk 0:00:08.8]} 50... a1=Q {[%clk 0:00:10.2]} 51. Rxa1
{[%clk 0:00:07.9]} 51... Rxa1 {[%clk 0:00:10.4]} 0-1

[Event "Early-Titled-Tuesday-Blitz-March-05-2024"]
[Site "Chess.com"]
[Date "2024.03.05"]
[Round "8"]
[White "JonSnowNW1"]
[Black "IlanSchnaider"]
[Result "0-1"]
[WhiteElo "2529"]
[BlackElo "2656"]
[TimeControl "180+1"]
[EndTime "9:30:46 PST"]
[Termination "IlanSchnaider won on time"]

1. c4 {[%clk 0:03:00.9]} 1... Nf6 {[%clk 0:02:59.6]} 2. Nc3 {[%clk 0:02:59.5]}
2... g6 {[%clk 0:02:59.1]} 3. g3 {[%clk 0:02:58.3]} 3... Bg7 {[%clk 0:02:59]} 4.
Bg2 {[%clk 0:02:58.5]} 4... O-O {[%clk 0:02:58.1]} 5. d3 {[%clk 0:02:55.3]} 5...
Nc6 {[%clk 0:02:57.1]} 6. e4 {[%clk 0:02:55.1]} 6... e5 {[%clk 0:02:54]} 7. Nge2
{[%clk 0:02:54.7]} 7... d6 {[%clk 0:02:53.3]} 8. O-O {[%clk 0:02:54.8]} 8... Nd7
{[%clk 0:02:52.2]} 9. f4 {[%clk 0:02:52.3]} 9... exf4 {[%clk 0:02:49.3]} 10.
Nxf4 {[%clk 0:02:46.2]} 10... Nd4 {[%clk 0:02:48.1]} 11. Be3 {[%clk 0:02:39.9]}
11... Nc5 {[%clk 0:02:33.5]} 12. Qd2 {[%clk 0:02:30.1]} 12... c6 {[%clk
0:02:16.6]} 13. Rf2 {[%clk 0:02:20.3]} 13... Nce6 {[%clk 0:01:46.7]} 14. Raf1
{[%clk 0:02:14.5]} 14... Nxf4 {[%clk 0:01:41.7]} 15. Bxf4 {[%clk 0:02:10.8]}
15... Be6 {[%clk 0:01:06.6]} 16. Bh6 {[%clk 0:02:06.4]} 16... b5 {[%clk
0:01:03.2]} 17. Bxg7 {[%clk 0:02:01.6]} 17... Kxg7 {[%clk 0:01:04.1]} 18. Qe3
{[%clk 0:02:01.2]} 18... Qb6 {[%clk 0:00:52.9]} 19. cxb5 {[%clk 0:01:50.2]}
19... cxb5 {[%clk 0:00:49.3]} 20. a3 {[%clk 0:01:31.3]} 20... Rad8 {[%clk
0:00:40.1]} 21. Kh1 {[%clk 0:01:30]} 21... Qc5 {[%clk 0:00:27.4]} 22. Ne2 {[%clk
0:01:03.6]} 22... Nxe2 {[%clk 0:00:20.6]} 23. Qxe2 {[%clk 0:00:57.5]} 23... Qd4
{[%clk 0:00:20.8]} 24. Qd2 {[%clk 0:00:37.7]} 24... Rc8 {[%clk 0:00:17.8]} 25.
Rf4 {[%clk 0:00:36.8]} 25... Bb3 {[%clk 0:00:15.8]} 26. Rh4 {[%clk 0:00:36.6]}
26... h5 {[%clk 0:00:15.2]} 27. Qg5 {[%clk 0:00:26.9]} 27... Rc5 {[%clk
0:00:15.2]} 28. Qd2 {[%clk 0:00:21.3]} 28... Rc2 {[%clk 0:00:13.6]} 29. Qf4
{[%clk 0:00:20.5]} 29... Qxb2 {[%clk 0:00:06.3]} 30. Bf3 {[%clk 0:00:11.6]}
30... Rf2 {[%clk 0:00:05.9]} 31. Rg1 {[%clk 0:00:10.2]} 31... Be6 {[%clk
0:00:03.8]} 32. Qe3 {[%clk 0:00:08.9]} 32... Rh8 {[%clk 0:00:03]} 33. Bg2 {[%clk
0:00:07]} 33... Rc2 {[%clk 0:00:02.4]} 34. e5 {[%clk 0:00:06.1]} 34... Qxe5
{[%clk 0:00:01.8]} 35. Re4 {[%clk 0:00:06.7]} 35... Qb2 {[%clk 0:00:02.2]} 36.
Qf4 {[%clk 0:00:03.7]} 36... Rxg2 {[%clk 0:00:01.8]} 37. Rxg2 {[%clk 0:00:02.8]}
37... Qa1+ {[%clk 0:00:02.3]} 38. Rg1 {[%clk 0:00:03.1]} 38... Qxa3 {[%clk
0:00:03]} 39. Qxd6 {[%clk 0:00:00.8]} 39... Qxd6 {[%clk 0:00:02.6]} 0-1

[Event "Early-Titled-Tuesday-Blitz-March-05-2024"]
[Site "Chess.com"]
[Date "2024.03.05"]
[Round "8"]
[White "BilicVladimir"]
[Black "Boorchess"]
[Result "1/2-1/2"]
[WhiteElo "2617"]
[BlackElo "2522"]
[TimeControl "180+1"]
[EndTime "9:30:46 PST"]
[Termination "Game drawn - insufficient material"]

1. e4 {[%clk 0:03:00.9]} 1... e5 {[%clk 0:02:59.9]} 2. Nf3 {[%clk 0:03:00.6]}
2... Nf6 {[%clk 0:03:00.1]} 3. d4 {[%clk 0:02:59.7]} 3... Nxe4 {[%clk
0:02:59.5]} 4. Bd3 {[%clk 0:02:59.8]} 4... d5 {[%clk 0:02:59.7]} 5. Nxe5 {[%clk
0:02:59.7]} 5... Nd7 {[%clk 0:03:00.1]} 6. Nxd7 {[%clk 0:02:58.9]} 6... Bxd7
{[%clk 0:03:01]} 7. O-O {[%clk 0:02:58.6]} 7... Bd6 {[%clk 0:03:01.5]} 8. c4
{[%clk 0:02:58.7]} 8... c6 {[%clk 0:03:01.2]} 9. cxd5 {[%clk 0:02:57.4]} 9...
cxd5 {[%clk 0:03:01.2]} 10. Qh5 {[%clk 0:02:57.1]} 10... O-O {[%clk 0:02:43.2]}
11. Qxd5 {[%clk 0:02:56.4]} 11... Bc6 {[%clk 0:01:53.9]} 12. Qh5 {[%clk
0:02:55.5]} 12... g6 {[%clk 0:01:32.3]} 13. Qh6 {[%clk 0:02:52.8]} 13... Re8
{[%clk 0:01:30.7]} 14. Nc3 {[%clk 0:02:50.3]} 14... Bf8 {[%clk 0:01:28.1]} 15.
Qf4 {[%clk 0:02:49.3]} 15... Qxd4 {[%clk 0:01:21.2]} 16. Bxe4 {[%clk 0:02:44.7]}
16... Bxe4 {[%clk 0:01:20.6]} 17. Rd1 {[%clk 0:02:44.1]} 17... Qe5 {[%clk
0:01:18.9]} 18. Qxe5 {[%clk 0:02:42.6]} 18... Rxe5 {[%clk 0:01:18.6]} 19. Bf4
{[%clk 0:02:38]} 19... Ree8 {[%clk 0:01:18.1]} 20. Nxe4 {[%clk 0:02:32.5]} 20...
Rxe4 {[%clk 0:01:17.6]} 21. Be3 {[%clk 0:02:32.8]} 21... Rb4 {[%clk 0:01:10]}
22. b3 {[%clk 0:02:32.3]} 22... a5 {[%clk 0:01:05.5]} 23. Rd3 {[%clk 0:02:18.7]}
23... a4 {[%clk 0:01:04.1]} 24. Rb1 {[%clk 0:02:16]} 24... axb3 {[%clk
0:01:03.7]} 25. axb3 {[%clk 0:02:15.6]} 25... Rb5 {[%clk 0:00:48.2]} 26. g3
{[%clk 0:02:15.5]} 26... h5 {[%clk 0:00:42.8]} 27. Rc1 {[%clk 0:02:13.6]} 27...
Bg7 {[%clk 0:00:21.7]} 28. Rc7 {[%clk 0:02:12.1]} 28... Be5 {[%clk 0:00:19.4]}
29. Rcd7 {[%clk 0:02:05.1]} 29... Ra3 {[%clk 0:00:18.3]} 30. Re7 {[%clk
0:01:52.1]} 30... Bf6 {[%clk 0:00:16.9]} 31. Re8+ {[%clk 0:01:51.9]} 31... Kg7
{[%clk 0:00:16.7]} 32. Rd7 {[%clk 0:01:48]} 32... Raxb3 {[%clk 0:00:15.7]} 33.
Rc8 {[%clk 0:01:44.9]} 33... Be5 {[%clk 0:00:14.6]} 34. Rdd8 {[%clk 0:01:41.2]}
34... Kf6 {[%clk 0:00:13]} 35. h4 {[%clk 0:01:39.3]} 35... Rc3 {[%clk
0:00:07.7]} 36. Bg5+ {[%clk 0:01:37.3]} 36... Ke6 {[%clk 0:00:07.7]} 37. Re8+
{[%clk 0:01:36.9]} 37... Kf5 {[%clk 0:00:07.8]} 38. Rxe5+ {[%clk 0:01:36.6]}
38... Rxe5 {[%clk 0:00:05.6]} 39. Rxc3 {[%clk 0:01:35.9]} 39... f6 {[%clk
0:00:06.5]} 40. Be3 {[%clk 0:01:35]} 40... b5 {[%clk 0:00:06]} 41. Rc5 {[%clk
0:01:33.5]} 41... Rxc5 {[%clk 0:00:05.2]} 42. Bxc5 {[%clk 0:01:33.3]} 42... g5
{[%clk 0:00:06.1]} 43. hxg5 {[%clk 0:01:28.6]} 43... fxg5 {[%clk 0:00:06.2]} 44.
Kg2 {[%clk 0:01:28.5]} 44... g4 {[%clk 0:00:06]} 45. Kf1 {[%clk 0:01:27]} 45...
Ke4 {[%clk 0:00:05.8]} 46. Ke2 {[%clk 0:01:27]} 46... Kd5 {[%clk 0:00:05.7]} 47.
Be7 {[%clk 0:01:26.8]} 47... Ke4 {[%clk 0:00:05.7]} 48. Bf6 {[%clk 0:01:22.3]}
48... Kf5 {[%clk 0:00:05.5]} 49. Bc3 {[%clk 0:01:21.8]} 49... Ke4 {[%clk
0:00:05.9]} 50. Bb4 {[%clk 0:01:21.7]} 50... Kd4 {[%clk 0:00:05.9]} 51. Ba5
{[%clk 0:01:21.5]} 51... Ke4 {[%clk 0:00:06.1]} 52. Bd2 {[%clk 0:01:15.5]} 52...
Kd4 {[%clk 0:00:06.2]} 53. f4 {[%clk 0:01:06.4]} 53... gxf3+ {[%clk 0:00:05.1]}
54. Kxf3 {[%clk 0:01:06.5]} 54... Ke5 {[%clk 0:00:04.1]} 55. Bb4 {[%clk
0:01:05.3]} 55... Kf5 {[%clk 0:00:04.2]} 56. Bd6 {[%clk 0:01:03.1]} 56... Ke6
{[%clk 0:00:04.3]} 57. Bb4 {[%clk 0:00:58.8]} 57... Kf5 {[%clk 0:00:04.2]} 58.
Bc3 {[%clk 0:00:59]} 58... Kg5 {[%clk 0:00:03.1]} 59. Bd2+ {[%clk 0:00:53.7]}
59... Kf5 {[%clk 0:00:03.3]} 60. Kg2 {[%clk 0:00:51.4]} 60... Kg4 {[%clk
0:00:03.2]} 61. Bb4 {[%clk 0:00:36.1]} 61... h4 {[%clk 0:00:03.5]} 62. gxh4
{[%clk 0:00:36.4]} 62... Kxh4 {[%clk 0:00:04]} 63. Kf3 {[%clk 0:00:37]} 63...
Kh5 {[%clk 0:00:04]} 64. Ke4 {[%clk 0:00:37.9]} 64... Kh4 {[%clk 0:00:04.5]} 65.
Kd5 {[%clk 0:00:38.8]} 65... Kh5 {[%clk 0:00:05]} 66. Kc5 {[%clk 0:00:39.7]}
66... Kh4 {[%clk 0:00:05.6]} 67. Kxb5 {[%clk 0:00:40.6]} 1/2-1/2

[Event "Early-Titled-Tuesday-Blitz-March-05-2024"]
[Site "Chess.com"]
[Date "2024.03.05"]
[Round "8"]
[White "GaiozNigalidze"]
[Black "Arystanner"]
[Result "0-1"]
[WhiteElo "2702"]
[BlackElo "2896"]
[TimeControl "180+1"]
[EndTime "9:30:47 PST"]
[Termination "Arystanner won by checkmate"]

1. d4 {[%clk 0:03:00.9]} 1... d5 {[%clk 0:03:00.5]} 2. c4 {[%clk 0:02:59.6]}
2... e6 {[%clk 0:03:01]} 3. cxd5 {[%clk 0:02:59.2]} 3... exd5 {[%clk 0:03:01.3]}
4. Nc3 {[%clk 0:02:59.6]} 4... c5 {[%clk 0:03:00.4]} 5. Nf3 {[%clk 0:02:58.4]}
5... Nc6 {[%clk 0:03:00.6]} 6. g3 {[%clk 0:02:57.6]} 6... c4 {[%clk 0:02:59.6]}
7. Bg2 {[%clk 0:02:56.2]} 7... Be7 {[%clk 0:03:00.1]} 8. O-O {[%clk 0:02:56.1]}
8... Nf6 {[%clk 0:03:00.8]} 9. Ne5 {[%clk 0:02:51.1]} 9... O-O {[%clk 0:03:01]}
10. Nxc6 {[%clk 0:02:50.5]} 10... bxc6 {[%clk 0:03:01.1]} 11. b3 {[%clk
0:02:50.7]} 11... cxb3 {[%clk 0:02:53.2]} 12. axb3 {[%clk 0:02:50.2]} 12... Re8
{[%clk 0:02:48.8]} 13. Ba3 {[%clk 0:02:46.8]} 13... Bxa3 {[%clk 0:02:43.3]} 14.
Rxa3 {[%clk 0:02:46.5]} 14... Bg4 {[%clk 0:02:40.8]} 15. Qc2 {[%clk 0:02:30.3]}
15... Qe7 {[%clk 0:02:38.6]} 16. Ra2 {[%clk 0:02:27.1]} 16... Qb4 {[%clk
0:02:36.2]} 17. Ra4 {[%clk 0:02:19.6]} 17... Qb6 {[%clk 0:02:36.5]} 18. e3
{[%clk 0:02:15.4]} 18... h5 {[%clk 0:02:25.1]} 19. h3 {[%clk 0:02:06.6]} 19...
Be6 {[%clk 0:02:24.9]} 20. Rfa1 {[%clk 0:02:06]} 20... Rab8 {[%clk 0:02:21.9]}
21. R1a3 {[%clk 0:01:59.6]} 21... Re7 {[%clk 0:02:18.5]} 22. Ra6 {[%clk
0:01:55.3]} 22... Qc7 {[%clk 0:02:11.3]} 23. Na4 {[%clk 0:01:35.3]} 23... Bd7
{[%clk 0:01:55]} 24. Nc5 {[%clk 0:01:35.2]} 24... Bc8 {[%clk 0:01:55.4]} 25.
R6a5 {[%clk 0:01:26]} 25... Rb6 {[%clk 0:01:49.7]} 26. Qa2 {[%clk 0:01:19.9]}
26... a6 {[%clk 0:01:38.7]} 27. Nxa6 {[%clk 0:01:14.4]} 27... Bxa6 {[%clk
0:01:38.8]} 28. Rxa6 {[%clk 0:01:15.3]} 28... Rxa6 {[%clk 0:01:39.5]} 29. Rxa6
{[%clk 0:01:15.6]} 29... Qb7 {[%clk 0:01:30.7]} 30. Qa4 {[%clk 0:01:06.4]} 30...
Rc7 {[%clk 0:01:22.7]} 31. b4 {[%clk 0:00:55.6]} 31... g6 {[%clk 0:01:21.2]} 32.
Qa5 {[%clk 0:00:47.6]} 32... Kg7 {[%clk 0:01:15.9]} 33. Qb6 {[%clk 0:00:45]}
33... Qc8 {[%clk 0:01:14.2]} 34. b5 {[%clk 0:00:42.6]} 34... Nd7 {[%clk
0:01:12.6]} 35. Qa5 {[%clk 0:00:38.1]} 35... cxb5 {[%clk 0:01:12.9]} 36. Qxb5
{[%clk 0:00:33.1]} 36... Nf6 {[%clk 0:01:08.9]} 37. Ra1 {[%clk 0:00:30.1]} 37...
h4 {[%clk 0:01:03.8]} 38. gxh4 {[%clk 0:00:25.8]} 38... Qh8 {[%clk 0:01:01.4]}
39. Bxd5 {[%clk 0:00:19.2]} 39... Qxh4 {[%clk 0:01:01.5]} 40. Bg2 {[%clk
0:00:19.1]} 40... Rc2 {[%clk 0:00:57.5]} 41. Rf1 {[%clk 0:00:19]} 41... Rd2
{[%clk 0:00:42.3]} 42. Qe5 {[%clk 0:00:19.1]} 42... Kg8 {[%clk 0:00:41.8]} 43.
d5 {[%clk 0:00:17.6]} 43... Nh5 {[%clk 0:00:28.7]} 44. Qb8+ {[%clk 0:00:14.5]}
44... Kg7 {[%clk 0:00:26.8]} 45. Qe5+ {[%clk 0:00:13.8]} 45... Kg8 {[%clk
0:00:27.2]} 46. Qc3 {[%clk 0:00:13.9]} 46... Ra2 {[%clk 0:00:26.5]} 47. Qd3
{[%clk 0:00:12.2]} 47... Qd8 {[%clk 0:00:20.6]} 48. d6 {[%clk 0:00:11.2]} 48...
Nf6 {[%clk 0:00:21.2]} 49. Rd1 {[%clk 0:00:10.2]} 49... Qd7 {[%clk 0:00:19.4]}
50. Qd4 {[%clk 0:00:09.1]} 50... Ne8 {[%clk 0:00:20]} 51. Bc6 {[%clk 0:00:05.5]}
51... Qf5 {[%clk 0:00:19.1]} 52. d7 {[%clk 0:00:05.2]} 52... Qxf2+ {[%clk
0:00:19.2]} 53. Kh1 {[%clk 0:00:05]} 53... Qh2# {[%clk 0:00:20.1]} 0-1

[Event "Early-Titled-Tuesday-Blitz-March-05-2024"]
[Site "Chess.com"]
[Date "2024.03.05"]
[Round "8"]
[White "Meri-Arabidze"]
[Black "djano"]
[Result "0-1"]
[WhiteElo "2690"]
[BlackElo "2568"]
[TimeControl "180+1"]
[EndTime "9:30:47 PST"]
[Termination "djano won by resignation"]

1. Nf3 {[%clk 0:02:59.3]} 1... Nf6 {[%clk 0:02:58.3]} 2. b3 {[%clk 0:02:59.5]}
2... d6 {[%clk 0:02:56.7]} 3. Bb2 {[%clk 0:03:00.4]} 3... e5 {[%clk 0:02:56.9]}
4. c4 {[%clk 0:02:59.5]} 4... Be7 {[%clk 0:02:56.7]} 5. g3 {[%clk 0:02:59.9]}
5... O-O {[%clk 0:02:57.2]} 6. Bg2 {[%clk 0:03:00.4]} 6... c5 {[%clk 0:02:57.8]}
7. O-O {[%clk 0:03:00.4]} 7... Nc6 {[%clk 0:02:58.5]} 8. d3 {[%clk 0:02:59.9]}
8... h6 {[%clk 0:02:54.9]} 9. a3 {[%clk 0:02:59.7]} 9... Bf5 {[%clk 0:02:54.4]}
10. Nc3 {[%clk 0:02:58.8]} 10... Qd7 {[%clk 0:02:54.6]} 11. Nd5 {[%clk
0:02:48.2]} 11... Nxd5 {[%clk 0:02:48.9]} 12. cxd5 {[%clk 0:02:49.1]} 12... Nd4
{[%clk 0:02:49.5]} 13. Nd2 {[%clk 0:02:38.2]} 13... Bg4 {[%clk 0:02:42.4]} 14.
f3 {[%clk 0:02:35.3]} 14... Bh3 {[%clk 0:02:39.9]} 15. e3 {[%clk 0:02:28.1]}
15... Bxg2 {[%clk 0:02:35.8]} 16. Kxg2 {[%clk 0:02:29]} 16... Nf5 {[%clk
0:02:25.5]} 17. Re1 {[%clk 0:02:27.2]} 17... Bg5 {[%clk 0:02:24.5]} 18. Kf2
{[%clk 0:02:16.1]} 18... Nxe3 {[%clk 0:02:03.8]} 19. Rxe3 {[%clk 0:02:15.6]}
19... Bxe3+ {[%clk 0:02:04.7]} 20. Kxe3 {[%clk 0:02:16.2]} 20... Qh3 {[%clk
0:02:05.3]} 21. Qg1 {[%clk 0:01:53]} 21... f5 {[%clk 0:02:04.6]} 22. Ke2 {[%clk
0:01:49.5]} 22... b5 {[%clk 0:01:52.5]} 23. Rf1 {[%clk 0:01:40.9]} 23... Qh5
{[%clk 0:01:45.8]} 24. Rf2 {[%clk 0:01:39.7]} 24... Qf7 {[%clk 0:01:45.2]} 25.
g4 {[%clk 0:01:33.2]} 25... Qxd5 {[%clk 0:01:37.3]} 26. gxf5 {[%clk 0:01:33]}
26... Rxf5 {[%clk 0:01:38.2]} 27. Qg4 {[%clk 0:01:25.1]} 27... Rf4 {[%clk
0:01:32.6]} 28. Qg6 {[%clk 0:01:20.6]} 28... Raf8 {[%clk 0:01:25.1]} 29. Bc1
{[%clk 0:01:10.2]} 29... c4 {[%clk 0:01:05.3]} 30. bxc4 {[%clk 0:01:05.9]} 30...
bxc4 {[%clk 0:01:05.1]} 31. dxc4 {[%clk 0:01:05.9]} 31... Rxc4 {[%clk
0:00:48.1]} 32. Nxc4 {[%clk 0:01:05.2]} 32... Qxc4+ {[%clk 0:00:48.6]} 33. Kd1
{[%clk 0:01:02.5]} 33... Qd4+ {[%clk 0:00:31.8]} 34. Ke1 {[%clk 0:00:52.5]}
34... Qc3+ {[%clk 0:00:15.2]} 35. Bd2 {[%clk 0:00:52.5]} 35... Qxa3 {[%clk
0:00:13.7]} 36. Ke2 {[%clk 0:00:18.8]} 36... Rf6 {[%clk 0:00:13]} 37. Qe8+
{[%clk 0:00:17.6]} 37... Kh7 {[%clk 0:00:13.2]} 38. h4 {[%clk 0:00:11.6]} 38...
Qb3 {[%clk 0:00:13.3]} 39. h5 {[%clk 0:00:09.7]} 39... Qc4+ {[%clk 0:00:13.1]}
40. Ke1 {[%clk 0:00:09.4]} 40... d5 {[%clk 0:00:11.7]} 41. Qxe5 {[%clk
0:00:08.4]} 41... d4 {[%clk 0:00:10.3]} 42. Qe4+ {[%clk 0:00:08.6]} 42... Kh8
{[%clk 0:00:10]} 43. Qe8+ {[%clk 0:00:08]} 43... Kh7 {[%clk 0:00:10.5]} 44. Qe4+
{[%clk 0:00:08]} 44... Kh8 {[%clk 0:00:11]} 45. f4 {[%clk 0:00:08.7]} 45... Re6
{[%clk 0:00:11.1]} 46. Re2 {[%clk 0:00:07.1]} 46... Rxe4 {[%clk 0:00:11.3]} 47.
Rxe4 {[%clk 0:00:08]} 47... Qd3 {[%clk 0:00:11.1]} 48. Re8+ {[%clk 0:00:08.1]}
48... Kh7 {[%clk 0:00:11.7]} 49. Re7 {[%clk 0:00:07.2]} 49... Qg3+ {[%clk
0:00:11.8]} 50. Kd1 {[%clk 0:00:07.1]} 50... Qg4+ {[%clk 0:00:11.9]} 51. Kc1
{[%clk 0:00:07.5]} 51... Qxh5 {[%clk 0:00:11.9]} 52. Rxa7 {[%clk 0:00:07.7]}
52... Qc5+ {[%clk 0:00:12.2]} 53. Kd1 {[%clk 0:00:06.9]} 53... Qxa7 {[%clk
0:00:13.1]} 0-1

[Event "Early-Titled-Tuesday-Blitz-March-05-2024"]
[Site "Chess.com"]
[Date "2024.03.05"]
[Round "8"]
[White "chess94cu"]
[Black "Muracle"]
[Result "0-1"]
[WhiteElo "2633"]
[BlackElo "2539"]
[TimeControl "180+1"]
[EndTime "9:30:47 PST"]
[Termination "Muracle won by resignation"]

1. e4 {[%clk 0:03:00.9]} 1... c6 {[%clk 0:02:52]} 2. d4 {[%clk 0:02:58.9]} 2...
d5 {[%clk 0:02:52.9]} 3. Nc3 {[%clk 0:02:59.3]} 3... dxe4 {[%clk 0:02:52]} 4.
Nxe4 {[%clk 0:03:00.2]} 4... Nf6 {[%clk 0:02:52.9]} 5. Nxf6+ {[%clk 0:02:59.9]}
5... exf6 {[%clk 0:02:53.8]} 6. c3 {[%clk 0:02:59.5]} 6... Bd6 {[%clk
0:02:54.4]} 7. Bd3 {[%clk 0:03:00.2]} 7... O-O {[%clk 0:02:55.1]} 8. Qc2 {[%clk
0:03:00.4]} 8... Re8+ {[%clk 0:02:55.8]} 9. Ne2 {[%clk 0:03:01.1]} 9... h5
{[%clk 0:02:56.4]} 10. Be3 {[%clk 0:03:01.1]} 10... Be6 {[%clk 0:02:55.8]} 11.
O-O {[%clk 0:02:58.2]} 11... Nd7 {[%clk 0:02:56]} 12. Bf4 {[%clk 0:02:57.8]}
12... Nf8 {[%clk 0:02:55.7]} 13. Qd2 {[%clk 0:02:54.3]} 13... Ng6 {[%clk
0:02:53]} 14. Bxd6 {[%clk 0:02:45.1]} 14... Qxd6 {[%clk 0:02:53.9]} 15. Rfe1
{[%clk 0:02:45.8]} 15... Bd5 {[%clk 0:02:40.1]} 16. c4 {[%clk 0:02:27.9]} 16...
Be4 {[%clk 0:02:18.7]} 17. Rad1 {[%clk 0:02:23.3]} 17... Nh4 {[%clk 0:02:11.9]}
18. Bxe4 {[%clk 0:02:20]} 18... Rxe4 {[%clk 0:02:12.8]} 19. Ng3 {[%clk 0:02:17]}
19... Rg4 {[%clk 0:02:06]} 20. b3 {[%clk 0:02:07.1]} 20... f5 {[%clk 0:02:04]}
21. d5 {[%clk 0:01:43.2]} 21... f4 {[%clk 0:01:46.8]} 22. dxc6 {[%clk
0:01:29.6]} 22... Qxc6 {[%clk 0:01:42.3]} 23. Qd5 {[%clk 0:01:27.8]} 23... fxg3
{[%clk 0:01:37.6]} 24. hxg3 {[%clk 0:01:25.1]} 24... Qxd5 {[%clk 0:01:33.6]} 25.
Rxd5 {[%clk 0:00:56.4]} 25... Ng6 {[%clk 0:01:30]} 26. Rxh5 {[%clk 0:00:47.5]}
26... Rd8 {[%clk 0:01:24.8]} 27. Kh2 {[%clk 0:00:34.6]} 27... Rgd4 {[%clk
0:01:22.9]} 28. Rc5 {[%clk 0:00:27.4]} 28... Rd2 {[%clk 0:01:19.2]} 29. f3
{[%clk 0:00:27.1]} 29... Rxa2 {[%clk 0:01:16.9]} 30. Rc7 {[%clk 0:00:27.6]}
30... b6 {[%clk 0:01:15.6]} 31. Kh3 {[%clk 0:00:24.1]} 31... f6 {[%clk
0:01:10.5]} 32. f4 {[%clk 0:00:21.6]} 32... Ra3 {[%clk 0:01:08.8]} 33. Re3
{[%clk 0:00:21.3]} 33... a5 {[%clk 0:01:06.2]} 34. Rb7 {[%clk 0:00:17.5]} 34...
Rd6 {[%clk 0:00:56.8]} 35. Re8+ {[%clk 0:00:15.7]} 35... Kh7 {[%clk 0:00:57.2]}
36. f5 {[%clk 0:00:16.3]} 36... Ne5 {[%clk 0:00:34.6]} 37. Ree7 {[%clk
0:00:16.6]} 37... Rxb3 {[%clk 0:00:34.9]} 38. Rxg7+ {[%clk 0:00:16.1]} 38... Kh6
{[%clk 0:00:35.3]} 39. Rg8 {[%clk 0:00:12.4]} 39... Rd7 {[%clk 0:00:31.4]} 40.
Rbb8 {[%clk 0:00:11.1]} 40... Rg7 {[%clk 0:00:31.2]} 41. Kh4 {[%clk 0:00:07.2]}
41... Rb4 {[%clk 0:00:18.8]} 42. g4 {[%clk 0:00:05.6]} 42... Rxc4 {[%clk
0:00:18.4]} 43. Rh8+ {[%clk 0:00:05.8]} 43... Rh7 {[%clk 0:00:18.5]} 44. Rxh7+
{[%clk 0:00:06]} 44... Kxh7 {[%clk 0:00:19.4]} 45. Kh5 {[%clk 0:00:06.8]} 45...
Rxg4 {[%clk 0:00:18.4]} 46. Rxb6 {[%clk 0:00:07.5]} 46... Rg5+ {[%clk
0:00:17.2]} 47. Kh4 {[%clk 0:00:07.9]} 47... Rxf5 {[%clk 0:00:17.8]} 48. Ra6
{[%clk 0:00:07.4]} 48... Kg6 {[%clk 0:00:15.6]} 49. Rxa5 {[%clk 0:00:05.9]}
49... Nf3+ {[%clk 0:00:15.4]} 50. gxf3 {[%clk 0:00:03.7]} 50... Rxa5 {[%clk
0:00:16.3]} 0-1